[Event "FIDE Candidates 2026"]
[Site "Pegeia, Cyprus"]
[Date "2026.04.03"]
[Round "5.2"]
[White "Caruana, Fabiano"]
[Black "Bluebaum, Matthias"]
[Result "1-0"]
[ECO "C42"]
[WhiteElo "2795"]
[BlackElo "2698"]
[Annotator "Mark Crowther"]
[PlyCount "55"]
[EventDate "2026.??.??"]
[TimeControl "40/7200:1800+30"]

{[%evp 0,55,22,22,22,22,23,-3,44,16,29,-1,-1,-1,24,11,15,6,-3,-57,-44,-52,-61,-58,-70,-70,-65,-88,-57,-45,-43,-44,-16,-33,-38,-60,0,-34,-29,-38,21,19,15,57,111,152,313,320,357,357,357,334,1390,1390,29997,29998,29999,-30000]} 1. e4 e5 2. Nf3 Nf6 3. Nxe5 d6 4. Nc4 {Caruana is trying to get a position that his opponent doesn't know so well, in that he succeeded.} Nxe4 5. Nc3 Nxc3 6. dxc3 (6. bxc3 {is more common.}) 6... d5 7. Ne3 c6 {Caruana: \"I knew that this position exists.\"} ({RR} 7... Be6 8. Bd3 Nd7 9. O-O Bc5 10. b4 Be7 11. c4 dxc4 12. Bxc4 Bxc4 13. Nxc4 O-O 14. Rb1 Nb6 15. Na5 {1-0 (15) Tsydypov,Z (2495)-Xie Jianjun (2357) Senta SRB 2026}) 8. Bd2 $146 {This already seems to be a new move.} ({Predecessor: RR} 8. Qd4 Nd7 9. c4 Qf6 10. Qxf6 Nxf6 11. cxd5 cxd5 12. Bd2 Bc5 13. O-O-O O-O 14. Bc3 Ne4 15. Bd4 Bxd4 16. Rxd4 Nxf2 17. Rg1 Re8 18. Rxd5 g6 {½-½ Mamedov,R (2689)-Kuzubov,Y (2637) Lvov rapid Cup 2017 (11) ½-½ (18) Mamedov,R (2689)-Kuzubov,Y (2637) Lvov 2017}) ({RR} 8. Bd3 Bd6 (8... Nd7 9. O-O Nf6 10. Nf5 Bxf5 11. Bxf5 Be7 12. Re1 O-O 13. Bg5 Re8 14. Qf3 Nd7 15. Bxe7 Rxe7 16. Rxe7 Qxe7 17. Bxd7 Qxd7 18. Qe3 {½-½ (18) Mariotti,S-Toth,B Castelvecchio Pascoli 1974}) 9. Bd2 O-O 10. Qh5 g6 11. Qf3 Re8 12. O-O Qc7 13. g3 Be6 14. Ng4 Bxg4 15. Qxg4 Nd7 16. f4 Nf6 17. Qf3 Ne4 18. Be3 b6 19. Rad1 Nxc3 20. Rde1 Ne4 21. f5 Bc5 22. fxg6 fxg6 {Havold,E (1216)-Haug,R (1160) Molde 2003 ½-½ (32)}) 8... g6 {The position is equal.} 9. f4 $1 {Obviously double-edged, but the idea is to push the f-pawn further against the black king position, while if White castles queenside, the weakening of his own king won't be critical.} Bg7 10. Qf3 Nd7 (10... f5 $5 {is one radical solution Black could consider.}) 11. O-O-O Nc5 12. f5 $1 O-O (12... Bd7 {is the computer choice, but there are long forced lines:} 13. Nxd5 $1 cxd5 14. Qxd5 Rc8 15. Re1+ Kf8 16. Be3 Na4 17. Bc4 Be8 18. Rhf1 {and White keeps an initiative.}) 13. g4 Ne4 {Caruana was more worried about Black going directly for his king with a move such as} (13... Na4 $5) 14. Bd3 Re8 $2 {[%eval 94,14] [%wdl 431,569,0] Both players felt this was a critical moment. Bluebaum: \"I was just wondering what kind of an idiot I am to even allow Bxe4 $1\" A dispirited Bluebaum said that he made many mistakes today, he starting here, he didn't even know why he allowed his knight to be captured.} (14... Nxd2 $1 $14 {[%eval 37,18] [%wdl 49,950,1] was suggested by Caruana, and after, e.g. with more or less equality was correct.} 15. Rxd2 Re8 (15... a5) 16. h4 {Black has counterplay with} d4 $1) 15. Bxe4 $1 $16 Rxe4 {Caruana: \"I had little risk, so I was happy. It’s very sharp, but here I’m safe.\"} 16. h4 $1 Be5 17. c4 $1 (17. Kb1) 17... Qb6 18. c3 $1 Qa5 $2 {[%eval 252,16] [%wdl 1000,0,0] A poor move.} (18... Bd7 $1 $16 {[%eval 77,18] [%wdl 222,778,0] is given as a key move to keep up resistance.}) 19. h5 $1 $18 g5 {[#]} (19... Qxa2 $2 {gives White nothing and allows} 20. hxg6 $1 {The problem is checks just allow the white king to hide on b1:} Qa1+ 21. Kc2 Qa4+ 22. Kb1) 20. cxd5 {[%eval 167,16] [%wdl 974,26,0] Not bad, but not the best.} (20. Nxd5 $142 $1 {[%eval 280,18] [%wdl 1000,0,0]} cxd5 21. Bxg5 {is apparently even better, but that just illustrates what a dire situation it is for Black.}) 20... Rf4 21. Qe2 cxd5 22. Kb1 Ra4 $6 {[%eval 483,16] [%wdl 1000,0,0] \"There’s basically no more moves for Black,\" said Caruana about the position after this move. He suggested There are no good moves but this loses fairly quickly.} (22... Qa6 {[%eval 248,17] [%wdl 1000,0,0] but after} 23. c4 $1 {it's also a miserable position for Black.} (23. Qxa6 bxa6)) 23. c4 {Discovered Attack} Qa6 24. Nxd5 {Discovered Attack} f6 25. Bc3 Qxc4 {[%eval 32750,20] [%wdl 1000,0,0]} (25... Bxf5+ $18 {[%eval 483,18] [%wdl 1000,0,0]} 26. gxf5 Rxc4 27. Bxe5 Rf8) 26. Nxf6+ $1 {Finishing in style $1 It's also winning to play White mates.} (26. Qxc4 Rxc4 27. Bxe5 fxe5 28. Rc1 {but much less fun.}) 26... Bxf6 {Bluebaum decides to fall on his sword. Other moves only delay checkmate.} 27. Qe8+ $1 Kg7 28. h6# {A rare pawn-checkmate, and an even rarer example of checkmate on the board in a Candidates game $1} 1-0

[Event "FIDE Candidates 2026"]
[Site "Pegeia, Cyprus"]
[Date "2026.04.03"]
[Round "5.3"]
[White "Nakamura, Hikaru"]
[Black "Sindarov, Javokhir"]
[Result "0-1"]
[ECO "D31"]
[WhiteElo "2810"]
[BlackElo "2745"]
[Annotator "Rafael Leitao"]
[PlyCount "82"]
[EventDate "2026.??.??"]
[TimeControl "40/7200:1800+30"]

{[%evp 0,82,22,21,21,-1,6,4,26,38,35,35,53,-10,-10,-9,27,0,32,-29,-31,-31,-15,-40,-31,-31,-41,-116,-96,-96,-116,-105,-107,-107,-107,-96,-96,-69,-69,-171,-154,-219,-206,-253,-147,-219,-219,-228,-170,-166,-199,-243,-155,-158,-165,-165,-165,-165,-150,-153,-156,-154,-168,-160,-153,-168,-170,-164,-186,-201,-209,-206,-203,-197,-186,-196,-217,-217,-217,-217,-217,-220,-244,-252,-219]} 1. d4 {Mark Crowther} d5 2. c4 e6 3. Nc3 c6 4. e4 {Nakamura decide optar pelo Gambito Marshall, provavelmente buscando uma posição complexa e de luta, já que precisava jogar pela vitória a todo custo. No entanto, como veremos, seu adversário estava melhor preparado nessa variante. Além disso, acredito que variantes forçadas de abertura não são exatamente o estilo de Nakamura.} dxe4 5. Nxe4 Bb4+ 6. Bd2 Qxd4 7. Bxb4 Qxe4+ 8. Be2 Na6 9. Bd6 {Este lance, 9.Ba5 e 9.Bc3 são igualmente possíveis e bastante teóricos. O lance jogado na partida é considerado o teste mais crítico. Mark Crowther: 'Nakamura said before the game that he felt he had to go for it today.'} (9. Bc3) (9. Ba5) 9... Qxg2 10. Bf3 (10. Qd2 {Certa vez joguei esse lance em uma partida importante da Copa do Mundo. Mark Crowther: '!?'} Nf6 (10... e5 $5 {também é possível.}) 11. Bf3 Qg6 12. O-O-O e5 13. Bxe5 O-O $6 (13... Be6 {é melhor.}) 14. Ne2 {com iniciativa para as Brancas em Leitão–Shulman, Copa do Mundo da FIDE, Khanty-Mansiysk 2007.}) 10... Qg5 {Mark Crowther: 'A sharp opening'} 11. Ne2 Ne7 ({RR} 11... Bd7 {Mark Crowther} 12. b4 Ne7 13. Ng3 Nf5 14. Ne4 Qh4 15. Rg1 Rd8 16. Rxg7 Bc8 17. Rg4 Qh6 18. Be5 Rxd1+ 19. Rxd1 f6 20. Bxf6 Rf8 21. Bg5 Qh3 22. Ke2 Nd4+ 23. Rxd4 Qxf3+ 24. Kd2 e5 25. Rd8+ Kf7 26. Nd6+ {Vakhidov,J (2506)-Mahdavi,R (2490) chess.com INT 2026 0-1}) 12. Ng3 {Uma posição crítica para todo o sistema de abertura.} O-O $5 {Nakamura fez uma declaração já famosa dizendo que esse lance não estava em seu arquivo de abertura. Mais uma vez, Sindarov surpreende o adversário na abertura. Mark Crowther: 'Nakamura said that this move was not in his files. He now thought for an hour.'} ({Mark Crowther: 'RR'} 12... e5 13. Qb3 {Mark Crowther} O-O 14. h4 Qf6 15. Ne4 Qe6 16. O-O-O Re8 17. Rhg1 Nf5 18. Bh5 Nd4 19. Qd3 g6 20. f4 c5 21. fxe5 Nb4 22. Qf1 Qf5 23. Rxd4 cxd4 24. Nf6+ Kh8 25. Bxb4 Rxe5 26. Bd1 Be6 27. Bd6 {Abdusattorov,N (2716)-Erigaisi,A (2712) Doha QAT 2023 1-0 (49)}) (12... Nf5) 13. h4 $2 {[%eval -88,18] [%wdl 0,641,359] Nakamura pensou por mais de uma hora antes de jogar este lance. Essa decisão é muito estranha, já que a partida segue de forma semelhante após 13.h4 e 13.Ce4, mas o cavalo está muito melhor em e4 do que em g3. Tenho certeza de que, se estivesse em sua melhor forma, o GM americano teria feito o lance de cavalo sem pensar muito, guiado por sua intuição. Mark Crowther: 'N' Mark Crowther: 'Sindarov knew he was better here and with a huge time advantage as well.'} ({Mark Crowther: 'Predecessor:' Mark Crowther: 'RR'} 13. Ne4 {[%eval 0,19] [%wdl 7,986,7] Mark Crowther: '=' Mark Crowther: 'is the only move.'} Qa5+ (13... Qh4 {Mark Crowther} 14. Rg1) 14. b4 Qd8 {Este é o lance que Nakamura considerou e que o fez descartar 13.Ce4.} (14... Nxb4 $5 {parece ruim, mas na verdade é jogável.} 15. O-O $1 (15. Kf1 {Achei esse lance lógico para deixar a coluna g disponível para a torre, mas não é o melhor.} Rd8 16. Qb3 Rxd6 $1 17. Nxd6 e5 {e as Pretas não estão pior nessa posição caótica e desequilibrada.}) 15... Re8 16. Qd2 c5 17. Bxe7 (17. Bxc5 $2 Nbc6) 17... Rxe7 18. Rad1 {Ainda há muitas complicações aqui, e as Pretas provavelmente podem se defender com uma sequência de lances precisos, que Sindarov sem dúvida estudou.} (18. Nf6+ {é tentador, mas após} gxf6 19. Kh1 Kf8 $7 20. Qh6+ Ke8 {o ataque não é decisivo. O computador avalia a posição como 0.00; isso significa que qualquer coisa pode acontecer em uma partida prática.})) 15. Rg1 {Mark Crowther: 'and the game goes on, Sindarov probably had quite a lot prepared.'} Ng6 $1 (15... f6 16. Qe2 $1 {com a ideia de rocar. As Brancas têm uma iniciativa perigosa.} (16. Qc2 $2 {Venkatesan-Smeets, EU-ch U16 Praga 2024.} Nf5 $1 (16... e5 {Mark Crowther} 17. Rd1 Nf5 18. b5 Qa5+ 19. Qd2 Qxd2+ 20. Rxd2 Nxd6 21. Rxd6 cxb5 22. Nxf6+ {½-½ Venkatesan,K (2202)-Smeets,K (2322) EU-ch U16 Prague 2024 (6)} Kh8 {Mark Crowther} 23. Nd7 Bxd7 24. Bxb7 Nc5 25. Bxa8 Rxa8 26. cxb5 Bxb5 27. Rd5 Rc8 {Venkatesan,K (2202)-Smeets,K (2322) Prague CZE 2024 ½-½ (72)}) 17. Bxf8 Qxf8 {com iniciativa para as Pretas.}) (16. Qb3 {foi apontado por Nakamura em sua análise.} Nf5 17. Bxf8 {As Pretas podem capturar tanto com o rei quanto com a dama, mas a posição parece melhor para as Brancas, embora ainda muito complicada.})) (15... Nf5 16. Be5 $1 {com a iniciativa.}) 16. h4 $1 {Um lance difícil.} f5 $5 (16... Nxh4 17. Rxg7+ Kxg7 18. Be5+ f6 19. Bxf6+ Rxf6 20. Qxd8 Nxf3+ 21. Ke2 Rf8 22. Qd6 e5 {Essa linha foi demonstrada no vídeo de Nakamura. As Pretas conseguem escapar com uma sequência de lances precisos.}) 17. Ng5 h6 {e a complicação continua. É fácil concluir que Nakamura simplesmente estava em uma posição muito ruim, tentando demonstrar compensação em uma posição em que seu adversário tinha uma preparação muito superior.}) 13... Qa5+ {Mark Crowther: ''} 14. b4 Nxb4 15. O-O {Mark Crowther: '[#]'} (15. Bxe7 $2 {(Mark Crowther) loses.} Nd5+ (15... Nxa2+ 16. Kf1 $18) 16. Kf1 Nxe7 $19) (15. Qd2 {Mark Crowther} Nc2+ 16. Kd1 Qxd2+ 17. Kxd2 Nd4 (17... Nxa1 18. Bxe7 Re8 19. Bc5 $15) (17... Rd8 $2 18. Kxc2 Rxd6 19. Rad1 $19) 18. Bxe7 Re8 $19 (18... Nxf3+ $2 19. Ke3 $19)) 15... Re8 {As Pretas estão melhor, já que a atividade das Brancas não é suficiente para compensar três peões. Além disso, Sindarov tinha uma grande vantagem no tempo.} 16. Qd2 (16. Qe1 $1 {é a melhor chance. A dama pode ir para e5 em algumas linhas, mas a ideia principal é impedir que as Pretas joguem ...Cf5. Mark Crowther: 'was probably forced.'} c5 17. Rd1 {As Pretas ainda têm uma clara vantagem após} Ng6 $1 18. h5 Nh4) 16... c5 17. Rad1 Nf5 18. Nxf5 exf5 {As Pretas conseguiram simplificar a posição, mas a partida ainda não está decidida.} 19. Qf4 (19. Be5 $5 {Mark Crowther}) 19... Nc6 20. Kh1 $2 {[%eval -274,18] [%wdl 0,0,1000]} (20. Kh2 $1 {[%eval -133,21] [%wdl 0,136,864] Esta foi a última vez em que Nakamura realmente pôde lutar para salvar a partida. O rei fica melhor colocado em h2 na linha após Mark Crowther: '' Mark Crowther: 'is a better defense but it was incredibly difficult to decide on this.'} Nd4 21. Rxd4 $1 cxd4 22. Rg1 g6 23. h5 {Aqui as Brancas têm boas chances práticas. Uma possível continuação é} Qd8 $1 24. Bd5 Be6 25. Bxb7 Rc8 $1 26. c5 {e não é fácil para as Pretas converterem a vantagem, pois as Brancas estão muito ativas.}) 20... Nd4 {Mark Crowther: '-+'} 21. Rg1 {Mark Crowther: '[#] Threatening mate with Rxg7+!.'} (21. Be5 {Mark Crowther} Qa6 22. Bxd4 cxd4 23. Rg1 {might continue to fight.}) 21... g6 {Mark Crowther: 'Essentially the game is over.'} (21... Nxf3 $2 {permite um empate após} 22. Rxg7+ Kxg7 23. Rg1+ Nxg1 (23... Kh8 24. Qxf3 {e as Pretas estão em perigo.}) 24. Qg5+) 22. Bd5 {[%eval -343,15] [%wdl 0,0,1000]} (22. Rxd4 {[%eval -242,19] [%wdl 0,0,1000] é menos perigoso com o rei em h1: Mark Crowther: ''} cxd4 23. h5 (23. Qxd4 {Mark Crowther}) 23... Qc3 $1 {O bispo não pode ir para d5 devido a um xeque em h3.}) 22... Be6 23. Bxb7 Ne2 {As Pretas conseguem simplificar a partida, mantendo uma vantagem material decisiva.} 24. Qd2 Qxd2 25. Rxd2 Nxg1 26. Bxa8 Rxa8 27. Kxg1 Rd8 28. Bf4 Rxd2 29. Bxd2 Bxc4 30. Be3 Bxa2 31. Bxc5 a5 {Finais com bispos de cores opostas tendem ao empate, mas uma vantagem de três peões é demais.} 32. f4 {Mark Crowther: 'Black is clearly winning.'} f6 33. Kf2 Kf7 34. Ba3 Ke6 35. Bf8 a4 36. Ke3 Kf7 37. Bb4 h6 38. Kf2 g5 39. Kg3 Bd5 40. Ba3 Be4 41. Bc1 gxh4+ {As Pretas simplesmente levam o rei para a ala da dama e avançam o peão até que o bispo das Brancas seja capturado. O bispo em e4 protege firmemente o peão em f5. 0-} 0-1

[Event "FIDE Candidates 2026"]
[Site "Pegeia, Cyprus"]
[Date "2026.04.03"]
[Round "5.4"]
[White "Giri, Anish"]
[Black "Wei, Yi"]
[Result "1/2-1/2"]
[ECO "E05"]
[WhiteElo "2753"]
[BlackElo "2754"]
[Annotator "Mark Crowther"]
[PlyCount "84"]
[EventDate "2026.??.??"]
[TimeControl "40/7200:1800+30"]

{[%evp 0,84,30,-18,6,-21,-21,-35,-45,-45,-10,-58,-2,3,27,-24,2,-14,1,0,48,67,52,76,98,25,25,35,38,40,33,36,32,12,12,12,14,14,11,18,11,13,31,29,23,17,49,33,44,22,23,0,0,8,11,8,43,62,14,0,4,4,0,0,25,0,22,19,21,23,23,0,19,17,23,22,18,18,18,19,18,18,14,14,18,18,17]} 1. c4 e6 2. g3 d5 3. Bg2 Nf6 4. Nf3 Be7 5. O-O O-O 6. d4 dxc4 7. Qc2 a6 8. a4 Bd7 9. Qxc4 c5 $5 {A new move that ultimately gave Wei Yi an effortless draw.} (9... Bc6 {has been played in almost 4,000 top-level games.}) ({RR} 9... b5 10. Qc2 Nc6 11. Bd2 Nd5 12. Nc3 Ncb4 13. Qc1 bxa4 14. Nxa4 Bb5 15. Re1 a5 16. Nc5 c6 17. Ne5 Qc7 18. h4 Rfd8 19. Ra3 Bf6 20. Bg5 Qe7 21. e4 Nb6 22. Rf3 Rxd4 23. Bxf6 gxf6 24. Ng4 {Caruana,F (2786)-Sarana,A (2693) chess.com INT 2023 1-0 (54)}) 10. dxc5 {Giri stopped to think, but not for too long, and in what followed, White's edge gradually faded away.} Bc6 $146 ({Predecessor: RR} 10... Bb5 11. Qc2 Bc6 12. Bg5 Nbd7 13. Bxf6 Bxf6 14. Nbd2 Rc8 15. Nb3 Bd5 16. a5 Bxb3 17. Qxb3 Nxc5 18. Qb4 Qd5 19. Nd2 Qe5 20. Ne4 Nxe4 21. Bxe4 Qxb2 22. Qxb2 Bxb2 23. Ra2 {½-½ Magai,V (2492)-Khazhatuly,A (1906) Moscow Botvinnik Memorial Cup 2024 (8.23) ½-½ (23) Magai,V (2492)-Khazhatuly,A (1906) Moscow RUS 2024}) 11. Nc3 a5 {Black sacrificed a pawn. White is slightly better.} 12. Ne5 Bxg2 13. Kxg2 Nbd7 14. Nd3 Nxc5 15. Nxc5 Qc7 16. Be3 {[#]} Rac8 17. N3e4 Nxe4 18. Qxe4 Bxc5 19. Rac1 b6 20. Rfd1 Qe7 {The position is equal.} 21. Bxc5 Rxc5 22. Rxc5 Qxc5 $11 23. Rd7 g6 24. b3 Qc3 25. Qf3 Qxf3+ 26. exf3 {KR-KR} Rc8 27. Rd6 b5 28. axb5 Rb8 29. b6 Kf8 30. Rc6 Rb7 31. g4 Ke8 32. h4 Kd7 33. Rc5 Rxb6 34. Rxa5 Ke7 35. h5 h6 36. f4 Rxb3 37. hxg6 fxg6 38. Ra7+ Kf6 39. Rh7 h5 40. gxh5 gxh5 41. Rxh5 Rd3 42. f3 Rd5 1/2-1/2

[Event "FIDE Candidates 2026"]
[Site "Pegeia, Cyprus"]
[Date "2026.04.05"]
[Round "6.2"]
[White "Sindarov, Javokhir"]
[Black "Giri, Anish"]
[Result "1/2-1/2"]
[ECO "D38"]
[WhiteElo "2745"]
[BlackElo "2753"]
[Annotator "Crowther,Mark"]
[PlyCount "170"]
[EventDate "2026.??.??"]
[TimeControl "40/7200:1800+30"]

{[%evp 0,170,22,18,18,4,12,4,4,4,10,-35,-12,-28,1,1,11,6,33,43,79,69,69,-13,125,57,51,33,33,25,36,16,16,44,-1,12,22,24,24,10,64,58,48,48,61,60,43,44,34,28,9,1,10,18,4,-38,2,-1,-1,4,5,4,13,-6,19,26,84,55,57,46,74,78,81,65,73,72,69,72,99,82,124,105,107,103,147,114,223,200,200,208,217,238,226,220,220,221,207,220,220,234,250,252,252,258,258,258,253,253,253,253,253,253,253,226,253,249,249,249,249,226,253,249,253,253,253,253,253,249,235,240,240,236,249,249,249,226,243,225,243,225,225,104,242,172,242,243,243,193,243,153,182,94,253,253,253,124,120,120,116,96,26,25,25,25,26,25,25,25,25,25,25,0,0]} 1. d4 Nf6 2. c4 e6 3. Nf3 d5 4. Nc3 Bb4 5. Bg5 h6 6. Bxf6 Qxf6 7. e3 O-O 8. Rc1 dxc4 9. Bxc4 c5 10. O-O cxd4 11. Ne4 (11. Nxd4 Bd7 12. Qb3 Nc6 13. Nxc6 Bxc3 14. Rxc3 Bxc6 15. Bb5 Bd5 16. Bc4 Bc6 17. Bb5 Bd5 18. Bc4 Bc6 {½-½ Nihal,S (2716)-Sargsyan,S (2656) Chess.com Play In4 Chess.com INT blitz 2026 (9)}) 11... Qe7 12. exd4 {A principled but rare choice.} (12. a3 Ba5 13. Qxd4 {preserving an intact pawn structure is much more common.}) 12... Rd8 13. Qe2 Nc6 {Giri already had a serious think here, while Sindarov kept blitzing out his moves.} 14. Rfd1 Ba5 15. Bb5 Bd7 16. Nc5 Be8 17. d5 $1 {Sindarov follows his prep.} exd5 18. Qxe7 Nxe7 19. Nxb7 Rdb8 {By this point Giri was already down 50 minutes on the clock, but as Sindarov pointed out, it's not so easy to hustle someone on time in a technical endgame.} 20. Nxa5 Rxb5 21. Nb3 a5 22. Rd2 a4 23. Nbd4 Rb7 {[#]} 24. h3 $146 ({RR} 24. Ne5 Rc8 25. Rxc8 Nxc8 26. b3 axb3 27. axb3 Nd6 28. Nd3 Nb5 29. Nb4 Nxd4 30. Rxd4 Ra7 31. Rd1 Rb7 32. Rd4 Rc7 33. f3 Rc1+ 34. Kf2 Rb1 35. Rd3 Rb2+ 36. Kg1 Rb1+ 37. Kf2 Rb2+ 38. Kg1 Rb1+ {½-½ Ruck,R (2531)-Dizdar,G (2541) AUT-chT 0607 Austria 2006 (7) Ruck,R (2531)-Dizdar,G (2541) Austria 2007 ½-½ (38)}) 24... Rab8 25. b3 axb3 26. axb3 {The knight has a beautiful outpost on d4 while defending b3. Meanwhile White can target the d5-pawn.} f6 27. g4 h5 28. Ne1 hxg4 29. hxg4 Ng6 30. f3 Ne5 31. Kf2 g5 32. Nd3 Bd7 33. Kg3 Nxd3 (33... Rc8 34. Rxc8+ Bxc8 {is probably the way to complete equality.}) 34. Rxd3 Rb6 35. Rd2 Kf7 36. Rc5 R8b7 {Giri already makes clear his plan to give up the d5-pawn.} 37. Rh2 (37. Rxd5 Be6 38. Rd8 Rd7 39. Rxd7+ Bxd7 40. Rc2 {is, as in the game, close to equality.}) 37... Rd6 38. Kf2 Kg7 $6 {[%eval 85,21] [%wdl 275,725,0] Now black has to be careful.} (38... f5 $11 {[%eval 28,22] [%wdl 9,991,0]}) 39. Ra5 Rb4 40. Ke3 Rdb6 41. Rxd5 $5 {[%eval 0,34] [%wdl 2,996,2] It seems this wasn't the best time to take this pawn. Allowing black to sacrifice the exchange to achieve a fortress.} (41. Kd3 {, for instance, poses more problems.} Rb7 (41... Rxb3+ 42. Nxb3 Rxb3+ 43. Kd4 {is better for White than in the game because of the active king. Note} Rxf3 $4 {can't be played because of} 44. Ra7 {pinning and winning the bishop.}) 42. Kc3 R4b6 43. Re2 Rc7+ 44. Kb2 Kf7 45. Rxd5 Rcb7 46. Re3 {In this line White has won the pawn without allowing simplifications, though a win is still far off.}) (41. Rc2 $16 {[%eval 91,22] [%wdl 359,641,0]} Rb7 42. Rxd5) 41... Be6 (41... Rxb3+ 42. Nxb3 Rxb3+ 43. Rd3 Rxd3+ 44. Kxd3 f5 {is also very playable.}) 42. Rd8 Rxb3+ 43. Nxb3 Rxb3+ $11 44. Kf2 Rb2+ {Giri heads for an endgame he correctly judges to be drawn, but} (44... Bxg4 $3 {draws on the spot. Funnily enough this is a draw. Giri of course didn't see this.} 45. fxg4 Rb2+ 46. Kg3 Rb3+ 47. Kg2 Rb2+ 48. Kg1 Rb1+ 49. Kg2 Rb2+ {The king can't leave the h2-rook unprotected, so the game ends in a draw by perpetual check.}) 45. Kg3 Rxh2 46. Kxh2 {Sindarov noted that having two pawns each instead of one makes this endgame harder for Black to hold. As he explained: \"When I analyzed I think he was surviving in every position with only moves, and the moves were really not so hard. I think a lot to do some tricks, but there's really nothing here $1\"} Kf7 {The position is a theoretical draw, Giri was never in any trouble.} 47. Kg3 Ke7 48. Ra8 Kf7 49. Ra7+ Kf8 50. Kf2 Ke8 51. Ke3 Kf8 52. Kd4 Ke8 53. Kc5 Kf8 54. Rb7 Ba2 55. Rc7 Bb3 56. Kd6 Ba2 57. Rc2 Bb3 58. Rb2 Bc4 $1 {An only move, e.g.,} (58... Bf7 $2 {loses to, e.g.} 59. Rb8+ Kg7 60. Rb5 Kf8 61. Rf5 Kg7 62. Ke7 {and pawns start to fall.}) 59. Rb4 Ba2 60. Rb5 (60. Ra4 $11 {[%eval 0,29] [%wdl 1,998,1]} Bb3 61. Ra8+ Kg7 62. Ra7+ Kf8) 60... Kf7 61. Rb7+ Kf8 62. Rb2 Bc4 63. Rf2 Bb3 64. Rf1 Bc4 65. Ra1 Bb3 66. Ra3 Bc4 67. Ra5 Kf7 68. Ra7+ Kf8 69. Kd7 Kf7 70. Rc7 Bb3 71. Rc5 Be6+ 72. Kc6 Bb3 73. Rf5 Be6 74. Kd6 Bb3 75. Rb5 Ba2 76. Rb4 Kf8 77. f4 {[%eval 96,19] [%wdl 431,569,0]} gxf4 $1 $16 78. Rxf4 Kg7 79. Ke7 Kg6 80. Rxf6+ Kg5 81. Rf2 Bb3 82. Rg2 Bd1 83. Ke6 Bxg4+ 84. Ke5 Kh5 $1 (84... Kh4 $4 {It's never too late to lose a drawn position.} 85. Kf4 Bc8 86. Rg8 Kh5 (86... Bd7 87. Rh8#) 87. Rxc8) 85. Rxg4 Kxg4 1/2-1/2